fUSD/lending_fUSD_20250109
["ID","MTS","AMOUNT","RATE_DAILY","PERIOD"]
[348220799,1736398250737,-500.0,0.00010173,2]
[348220800,1736398250747,-500.0,0.00010173,2]
[348220801,1736398250756,-500.0,0.00010173,2]
[348220802,1736398250766,-500.0,0.00010173,2]
[348220803,1736398250775,-500.0,0.00010173,2]
[348220804,1736398250784,-500.21927116,0.00010173,2]
[348220805,1736398250793,-503.46963081,0.00010173,2]
[348220806,1736398250802,-500.0,0.00010173,2]
[348220807,1736398250811,-518.85,0.00010173,2]
[348220808,1736398250821,-501.45989915,0.00010173,2]
[348220809,1736398250830,-500.66630858,0.00010173,2]
[348220810,1736398250839,-502.58331064,0.00010173,2]
[348220811,1736398250848,-500.0,0.00010173,2]
[348220812,1736398250858,-500.0,0.00010173,2]
[348220813,1736398250867,-500.20863755,0.00010173,2]
[348220814,1736398250877,-500.0,0.00010173,2]
[348220815,1736398250885,-501.23874663,0.00010173,2]
[348220816,1736398250895,-224.27577042,0.00010173,2]
[348220817,1736398250904,-500.0,0.00010173,2]
[348220818,1736398250913,-500.0,0.00010173,2]
[348220819,1736398250923,-500.0,0.00010173,2]
[348220820,1736398250932,-500.0,0.00010173,2]
[348220821,1736398250940,-505.14993876,0.00010173,2]
[348220822,1736398250949,-500.0,0.00010173,2]
[348220823,1736398250958,-500.0,0.00010173,2]
[348220824,1736398250966,-500.0,0.00010173,2]
[348220825,1736398250975,-500.0,0.00010173,2]
[348220826,1736398250983,-500.0,0.00010173,2]
[348220827,1736398250992,-500.0,0.00010173,2]
[348220828,1736398251001,-500.0,0.00010173,2]
[348220829,1736398251011,-500.0,0.00010173,2]
[348220830,1736398251020,-500.0,0.00010173,2]
[348220831,1736398251029,-501.319,0.00010173,2]
[348220832,1736398251038,-500.0,0.00010173,2]
[348220833,1736398251047,-500.4337222,0.00010173,2]
[348220834,1736398251056,-500.0,0.00010173,2]
[348220835,1736398251066,-500.0,0.00010173,2]
[348220836,1736398251075,-500.0,0.00010173,2]
[348220837,1736398251085,-500.0,0.00010173,2]
[348220838,1736398251094,-500.0,0.00010173,2]
[348220839,1736398251103,-588.01751269,0.00010173,2]
[348220840,1736398251112,-500.0,0.00010173,2]
[348220841,1736398251121,-500.0,0.00010173,2]
[348220842,1736398251129,-500.0,0.00010173,2]
[348220843,1736398251138,-500.0,0.00010173,2]
[348220844,1736398251147,-500.0,0.00010173,2]
[348220845,1736398251156,-605.53677208,0.00010173,2]
[348220846,1736398251164,-500.0,0.00010173,2]
[348220847,1736398251173,-500.0,0.00010173,2]
[348220848,1736398251182,-500.0,0.00010173,2]
[348220849,1736398251191,-500.0,0.00010173,2]
[348220850,1736398251199,-500.0,0.00010173,2]
[348220851,1736398251207,-502.91276104,0.00010173,2]
[348220852,1736398251216,-500.0,0.00010173,2]
[348220853,1736398251225,-500.0,0.00010173,2]
[348220854,1736398251234,-500.0,0.00010173,2]
[348220855,1736398251243,-500.0,0.00010173,2]
[348220856,1736398251251,-500.0,0.00010173,2]
[348220857,1736398251260,-500.0,0.00010173,2]
[348220858,1736398251269,-500.0,0.00010173,2]
[348220859,1736398251279,-500.0,0.00010173,2]
[348220860,1736398251288,-500.0,0.00010173,2]
[348220861,1736398251298,-500.0,0.00010173,2]
[348220862,1736398251307,-500.0,0.00010173,2]
[348220863,1736398251316,-500.0,0.00010173,2]
[348220864,1736398251324,-500.0,0.00010173,2]
[348220865,1736398251334,-500.0,0.00010173,2]
[348220866,1736398251343,-500.0,0.00010173,2]
[348220867,1736398251353,-500.0,0.00010173,2]
[348220868,1736398251361,-500.0,0.00010173,2]
[348220869,1736398251370,-500.0,0.00010173,2]
[348220870,1736398251380,-500.0,0.00010173,2]
[348220871,1736398251389,-500.0,0.00010173,2]
[348220872,1736398251399,-500.0,0.00010173,2]
[348220873,1736398251408,-500.0,0.00010173,2]
[348220874,1736398251417,-500.0,0.00010173,2]
[348220875,1736398251427,-500.0,0.00010173,2]
[348220876,1736398251437,-500.0,0.00010173,2]
[348220877,1736398251446,-320.27,0.00010173,2]
[348220878,1736398251455,-500.0,0.00010173,2]
[348220879,1736398251465,-500.0,0.00010173,2]
[348220880,1736398251474,-500.0,0.00010173,2]
[348220881,1736398251484,-500.0,0.00010173,2]
[348220882,1736398251493,-500.0,0.00010173,2]
[348220883,1736398251506,-500.0,0.00010173,2]
[348220884,1736398251515,-500.0,0.00010173,2]
[348220885,1736398251524,-505.33721338,0.00010173,2]
[348220886,1736398251534,-500.0,0.00010173,2]
[348220887,1736398251543,-500.0,0.00010173,2]
[348220888,1736398251552,-500.0,0.00010173,2]
[348220889,1736398251562,-500.0,0.00010173,2]
[348220890,1736398251571,-500.0,0.00010173,2]
[348220891,1736398251580,-500.0,0.00010173,2]
[348220892,1736398251590,-500.0,0.00010173,2]
[348220893,1736398251598,-500.0,0.00010173,2]
[348220894,1736398251607,-500.0,0.00010173,2]
[348220895,1736398251617,-500.0,0.00010173,2]
[348220896,1736398251626,-500.0,0.00010173,2]
[348220897,1736398251635,-500.0,0.00010173,2]
[348220898,1736398251644,-500.0,0.00010173,2]
[348220899,1736398251653,-500.0,0.00010173,2]
[348220900,1736398251662,-500.0,0.00010173,2]
[348220901,1736398251671,-500.0,0.00010173,2]
[348220902,1736398251680,-500.0,0.00010173,2]
[348220903,1736398251689,-502.93145544,0.00010173,2]
[348220904,1736398251698,-340.86116379,0.00010173,2]
[348220905,1736398251707,-559.87712976,0.00010173,2]
[348220906,1736398251719,-500.0,0.00010173,2]
[348220907,1736398251731,-500.0,0.00010173,2]
[348220908,1736398251740,-500.0,0.00010173,2]
[348220909,1736398251750,-500.0,0.00010173,2]
[348220910,1736398251759,-500.0,0.00010173,2]
[348220911,1736398251768,-500.0,0.00010173,2]
[348220912,1736398251776,-507.36649909,0.00010173,2]
[348220913,1736398251785,-500.0,0.00010173,2]
[348220914,1736398251794,-500.0,0.00010173,2]
[348220915,1736398251804,-500.0,0.00010173,2]
[348220916,1736398251813,-500.0,0.00010173,2]
[348220917,1736398251821,-500.0,0.00010173,2]
[348220918,1736398251830,-500.0,0.00010173,2]
[348220919,1736398251839,-508.57653779,0.00010173,2]
[348220920,1736398251847,-500.0,0.00010173,2]
[348220921,1736398251856,-500.0,0.00010173,2]
[348220922,1736398251865,-500.0,0.00010173,2]
[348220923,1736398251874,-525.33,0.00010173,2]
[348220924,1736398251883,-500.0,0.00010173,2]
[348220925,1736398251892,-500.0,0.00010173,2]
[348220926,1736398251901,-500.0,0.00010173,2]
[348220927,1736398251910,-504.14191721,0.00010173,2]
[348220928,1736398251919,-500.0,0.00010173,2]
[348220929,1736398251929,-501.79558602,0.00010173,2]
[348220930,1736398251938,-399.10880704,0.00010173,2]
[348220931,1736398251947,-501.02989664,0.00010173,2]
[348220932,1736398251956,-500.0,0.00010173,2]
[348220933,1736398251969,-500.0,0.00010173,2]
[348220934,1736398251983,-500.0,0.00010173,2]
[348220935,1736398251998,-503.47443321,0.00010173,2]
[348220936,1736398252009,-500.53536322,0.00010173,2]
[348220937,1736398252022,-500.0,0.00010173,2]
[348220938,1736398252035,-500.0,0.00010173,2]
[348220939,1736398252050,-500.0,0.00010173,2]
[348220940,1736398252064,-500.0,0.00010173,2]
[348220941,1736398252077,-501.74826303,0.00010173,2]
[348220942,1736398252090,-500.0,0.00010173,2]
[348220943,1736398252102,-500.0,0.00010173,2]
[348220944,1736398252114,-331.79585934,0.00010173,2]
[348220945,1736398252124,-500.0,0.00010173,2]
[348220946,1736398252137,-500.0,0.00010173,2]
[348220947,1736398252149,-500.0,0.00010173,2]
[348220948,1736398252162,-500.0,0.00010173,2]
[348220949,1736398252174,-500.0,0.00010173,2]
[348220950,1736398252187,-500.0,0.00010173,2]
[348220951,1736398252201,-505.71429642,0.00010173,2]
[348220952,1736398252213,-500.0,0.00010173,2]
[348220953,1736398252227,-500.0,0.00010173,2]
[348220954,1736398252238,-500.0,0.00010173,2]
[348220955,1736398252250,-500.0,0.00010173,2]
[348220956,1736398252263,-516.71699819,0.00010173,2]
[348220957,1736398252274,-500.0,0.00010173,2]
[348220958,1736398252288,-500.0,0.00010173,2]
[348220959,1736398252300,-500.0,0.00010173,2]
[348220960,1736398252313,-530.5685498,0.00010173,2]
[348220961,1736398252325,-500.0,0.00010173,2]
[348220962,1736398252336,-501.29240161,0.00010173,2]
[348220963,1736398252346,-560.65081062,0.00010173,2]
[348220964,1736398252359,-500.0,0.00010173,2]
[348220965,1736398252373,-500.0,0.00010173,2]
[348220966,1736398252387,-500.0,0.00010173,2]
[348220967,1736398252397,-501.47079171,0.00010173,2]
[348220968,1736398252408,-500.0,0.00010173,2]
[348220969,1736398252419,-500.0,0.00010173,2]
[348220970,1736398252431,-500.0,0.00010173,2]
[348220971,1736398252444,-500.0,0.00010173,2]
[348220972,1736398252457,-500.0,0.00010173,2]
[348220973,1736398252468,-500.0,0.00010173,2]
[348220974,1736398252479,-500.0,0.00010173,2]
[348220975,1736398252491,-526.09288813,0.00010173,2]
[348220976,1736398252506,-500.0,0.00010173,2]
[348220977,1736398252519,-500.0,0.00010173,2]
[348220978,1736398252531,-500.0,0.00010173,2]
[348220979,1736398252543,-500.0,0.00010173,2]
[348220980,1736398252556,-500.0,0.00010173,2]
[348220981,1736398252567,-500.0,0.00010173,2]
[348220982,1736398252581,-500.0,0.00010173,2]
[348220983,1736398252593,-500.0,0.00010173,2]
[348220984,1736398252605,-500.0,0.00010173,2]
[348220985,1736398252617,-500.0,0.00010173,2]
[348220986,1736398252628,-500.0,0.00010173,2]
[348220987,1736398252640,-500.0,0.00010173,2]
[348220988,1736398252652,-204.76847216,0.00010173,2]
[348220989,1736398252664,-657.5,0.00010173,2]
[348220990,1736398252676,-500.0,0.00010173,2]
[348220991,1736398252687,-500.0,0.00010173,2]
[348220992,1736398252699,-500.0,0.00010173,2]
[348220993,1736398252714,-270.1145945,0.00010173,2]
[348220994,1736398252726,-500.0,0.00010173,2]
[348220995,1736398252737,-500.0,0.00010173,2]
[348220996,1736398252748,-501.03690341,0.00010173,2]
[348220997,1736398252760,-500.0,0.00010173,2]
[348220998,1736398252771,-500.0,0.00010173,2]
[348220999,1736398252783,-503.29254504,0.00010173,2]
[348221000,1736398252795,-1649.36,0.00010173,2]
[348221001,1736398252806,-500.0,0.00010173,2]
[348221002,1736398252819,-500.0,0.00010173,2]
[348221003,1736398252831,-500.0,0.00010173,2]
[348221004,1736398252843,-500.0,0.00010173,2]
[348221005,1736398252855,-500.0,0.00010173,2]
[348221006,1736398252866,-500.0,0.00010173,2]
[348221007,1736398252878,-1567.76,0.00010173,2]
[348221008,1736398252890,-500.0,0.00010173,2]
[348221009,1736398252901,-1328.43,0.00010173,2]
[348221010,1736398252914,-500.0,0.00010173,2]
[348221011,1736398252924,-500.0,0.00010173,2]
[348221012,1736398252936,-500.0,0.00010173,2]
[348221013,1736398252947,-500.0,0.00010173,2]
[348221014,1736398252959,-1401.65,0.00010173,2]
[348221015,1736398252970,-500.0,0.00010173,2]
[348221016,1736398252981,-221.01578604,0.00010173,2]
[348221017,1736398252993,-500.0,0.00010173,2]
[348221018,1736398253005,-500.75982875,0.00010173,2]
[348221019,1736398253016,-500.0,0.00010173,2]
[348221020,1736398253029,-500.0,0.00010173,2]
[348221021,1736398253040,-500.0,0.00010173,2]
[348221022,1736398253053,-500.0,0.00010173,2]
[348221023,1736398253066,-500.0,0.00010173,2]
[348221024,1736398253078,-504.40797206,0.00010173,2]
[348221025,1736398253090,-500.86928628,0.00010173,2]
[348221026,1736398253103,-500.0,0.00010173,2]
[348221027,1736398253115,-500.0,0.00010173,2]
[348221028,1736398253127,-500.0,0.00010173,2]
[348221029,1736398253138,-500.0,0.00010173,2]
[348221030,1736398253151,-500.0,0.00010173,2]
[348221031,1736398253163,-506.01254636,0.00010173,2]
[348221032,1736398253175,-500.0,0.00010173,2]
[348221033,1736398253187,-501.49428676,0.00010173,2]
[348221034,1736398253198,-507.67291452,0.00010173,2]
[348221035,1736398253210,-500.63325133,0.00010173,2]
[348221036,1736398253222,-500.0,0.00010173,2]
[348221037,1736398253233,-500.0,0.00010173,2]
[348221038,1736398253245,-500.0,0.00010173,2]
[348221039,1736398253256,-502.99911754,0.00010173,2]
[348221040,1736398253267,-500.0,0.00010173,2]
[348221041,1736398253280,-501.02461425,0.00010173,2]
[348221042,1736398253291,-502.17590344,0.00010173,2]
[348221043,1736398253303,-614.47,0.00010173,2]
[348221044,1736398253315,-500.0,0.00010173,2]
[348221045,1736398253327,-501.39447034,0.00010173,2]
[348221046,1736398253340,-500.87435054,0.00010173,2]
[348221047,1736398253353,-502.37196802,0.00010173,2]
[348221048,1736398253365,-328.03338262,0.00010173,2]
[348221049,1736398253377,-540.11386389,0.00010173,2]
[348221050,1736398253388,-496.389325,0.00010173,2]
[348221051,1736398253399,-504.75568898,0.00010173,2]
[348221052,1736398253413,-502.09525589,0.00010173,2]
[348221053,1736398253425,-500.0,0.00010173,2]
[348221054,1736398253436,-503.00003258,0.00010173,2]
[348221055,1736398253448,-500.0,0.00010173,2]
[348221056,1736398253460,-506.25092787,0.00010173,2]
[348221057,1736398253472,-503.26888868,0.00010173,2]
[348221058,1736398253482,-257.11078512,0.00010173,2]
[348221059,1736398253494,-513.59,0.00010173,2]
[348221060,1736398253509,-777.24,0.00010173,2]
[348221061,1736398253520,-548.14323974,0.00010173,2]
[348221062,1736398253531,-500.0,0.00010173,2]
[348221063,1736398253543,-502.47281498,0.00010173,2]
[348221064,1736398253555,-502.6579094,0.00010173,2]
[348221065,1736398253567,-552.47892426,0.00010173,2]
[348221066,1736398253581,-500.0,0.00010173,2]
[348221067,1736398253592,-503.08665867,0.00010173,2]
[348221068,1736398253605,-501.59513373,0.00010173,2]
[348221069,1736398253617,-500.0,0.00010173,2]
[348221070,1736398253629,-500.0,0.00010173,2]
[348221071,1736398253642,-502.68269469,0.00010173,2]
[348221072,1736398253654,-500.0,0.00010173,2]
[348221073,1736398253666,-1099.64,0.00010173,2]
[348221074,1736398253678,-501.41332393,0.00010173,2]
[348221075,1736398253690,-500.62770023,0.00010173,2]
[348221076,1736398253699,-504.32955491,0.00010173,2]
[348221077,1736398253709,-500.0,0.00010173,2]
[348221078,1736398253719,-500.0,0.00010173,2]
[348221079,1736398253728,-500.0,0.00010173,2]
[348221080,1736398253738,-150.0,0.00010251,2]
[348221081,1736398253748,-151.26,0.00010251,2]
[348221082,1736398253757,-6966.1496197,0.00010265,2]
[348221083,1736398253767,-501.94848726,0.0001027,2]
[348221084,1736398253778,-502.22237101,0.0001027,2]
[348221085,1736398253787,-501.4864288,0.0001027,2]
[348221086,1736398253797,-503.96806402,0.0001027,2]
[348221087,1736398253807,-501.86394534,0.0001027,2]
[348221088,1736398253816,-502.33941884,0.0001027,2]
[348221089,1736398253826,-502.39315846,0.0001027,2]
[348221090,1736398253836,-501.72616935,0.0001027,2]
[348221091,1736398253845,-338.67471309,0.0001027,2]
[348221092,1736398253856,-501.49450951,0.0001027,2]
[348221093,1736398253866,-372.72377271,0.0001027,2]
[348221094,1736398254139,-502.24322802,0.0001027,2]
[348221095,1736398254163,-212.42457869,0.0001027,2]
[348221096,1736398254175,-504.43759059,0.0001027,2]
[348221097,1736398254185,-651.51,0.00010271,2]
[348221098,1736398254195,-1514.68,0.00010271,2]
[348221099,1736398254204,-702.38,0.00010271,2]
[348221100,1736398254213,-1049.37,0.00010271,2]
[348221101,1736398254223,-500.0,0.00010271,2]
[348221102,1736398254234,-500.0,0.00010271,2]
[348221103,1736398254244,-777.15,0.00010271,2]
[348221104,1736398254254,-962.32,0.00010271,2]
[348221105,1736398254264,-500.0,0.00010271,2]
[348221106,1736398254275,-501.04929038,0.00010271,2]
[348221107,1736398254285,-500.0,0.00010271,2]
[348221108,1736398254295,-500.0,0.00010271,2]
[348221109,1736398254305,-500.0,0.00010271,2]
[348221110,1736398254315,-500.0,0.00010271,2]
[348221111,1736398254325,-639.14,0.00010271,2]
[348221112,1736398254334,-1093.98,0.00010271,2]
[348221113,1736398254344,-500.0,0.00010271,2]
[348221114,1736398254354,-500.0,0.00010271,2]
[348221115,1736398254364,-963.71,0.00010271,2]
[348221116,1736398254374,-500.0,0.00010271,2]
[348221117,1736398254385,-500.0,0.00010272,2]
[348221118,1736398254395,-1182.84,0.00010272,2]
[348221119,1736398254405,-500.0,0.00010272,2]
[348221120,1736398254415,-587.07,0.00010272,2]
[348221121,1736398254424,-587.07,0.00010272,2]
[348221122,1736398254434,-500.0,0.00010272,2]
[348221123,1736398254443,-500.0,0.00010272,2]
[348221124,1736398254453,-1000.0,0.00010272,2]
[348221125,1736398254463,-500.0,0.00010272,2]
[348221126,1736398254472,-500.0,0.00010272,2]
[348221127,1736398254482,-933.34,0.00010272,2]
[348221128,1736398254491,-894.46,0.00010272,2]
[348221129,1736398254501,-1092.32,0.00010272,2]
[348221130,1736398254514,-3021.64,0.00010272,2]
[348221131,1736398254524,-818.73,0.00010273,2]
[348221132,1736398254534,-500.0,0.00010273,2]
[348221133,1736398254543,-500.0,0.00010273,2]
[348221134,1736398254554,-1349.54,0.00010273,2]
[348221135,1736398254564,-500.0,0.00010273,2]
[348221136,1736398254576,-500.0,0.00010273,2]
[348221137,1736398254587,-500.0,0.00010273,2]
[348221138,1736398254597,-500.0,0.00010273,2]
[348221139,1736398254607,-500.0,0.00010273,2]
[348221140,1736398254616,-1493.48,0.00010273,2]
[348221141,1736398254625,-505.99,0.00010273,2]
[348221142,1736398254634,-500.0,0.00010273,2]
[348221143,1736398254644,-500.0,0.00010273,2]
[348221144,1736398254654,-506.8748005,0.00010273,2]
[348221145,1736398254664,-686.67,0.00010273,2]
[348221146,1736398254674,-869.64,0.00010273,2]
[348221147,1736398254684,-500.0,0.00010273,2]
[348221148,1736398254694,-500.0,0.00010273,2]
[348221149,1736398254703,-1183.5,0.00010273,2]
[348221150,1736398254712,-942.01,0.00010273,2]
[348221151,1736398254722,-322.18097,0.00010273,2]
[348221152,1736398254731,-156.51609,0.00010273,2]
[348221153,1736398254741,-156.638759,0.00010273,2]
[348221154,1736398254751,-2163.49,0.00010273,2]
[348221155,1736398254761,-1797.54,0.00010273,2]
[348221156,1736398254770,-861.542873,0.00010273,2]
[348221157,1736398254780,-500.0,0.00010273,2]
[348221158,1736398254789,-986.78,0.00010273,2]
[348221159,1736398254799,-500.0,0.00010273,2]
[348221160,1736398254809,-500.0,0.00010273,2]
[348221161,1736398254819,-500.0,0.00010273,2]
[348221162,1736398254828,-500.0,0.00010273,2]
[348221163,1736398254845,-500.0,0.00010273,2]
[348221164,1736398254856,-1096.0,0.00010297,2]
[348221165,1736398254866,-150.61,0.000103,2]
[348221166,1736398254876,-150.34,0.000103,2]
[348221167,1736398254886,-157.881,0.0001037,2]
[348221168,1736398254895,-166.66,0.0001037,2]
[348221169,1736398254906,-500.0,0.0001041,2]
[348221170,1736398254915,-1000.0,0.00010411,2]
[348221171,1736398254925,-1000.0,0.00010411,2]
[348221172,1736398254935,-1000.0,0.00010411,2]
[348221173,1736398254945,-1000.0,0.00010411,2]
[348221174,1736398254955,-1000.0,0.00010411,2]
[348221175,1736398254965,-1000.0,0.00010411,2]
[348221176,1736398254974,-1000.0,0.00010411,2]
[348221177,1736398254984,-1000.0,0.00010411,2]
[348221178,1736398254994,-1000.0,0.00010411,2]
[348221179,1736398255004,-1000.0,0.00010411,2]
[348221180,1736398255014,-1000.0,0.00010411,2]
[348221181,1736398255024,-457.0,0.00010411,2]
[348221182,1736398255034,-1000.0,0.00010411,2]
[348221183,1736398255043,-1000.0,0.00010411,2]
[348221184,1736398255053,-1000.0,0.00010411,2]
[348221185,1736398255063,-1000.0,0.00010411,2]
[348221186,1736398255072,-1000.0,0.00010411,2]
[348221187,1736398255083,-1000.0,0.00010411,2]
[348221188,1736398255093,-1000.0,0.00010411,2]
[348221189,1736398255102,-1000.0,0.00010411,2]
[348221190,1736398255112,-1000.0,0.00010411,2]
[348221191,1736398255122,-1000.0,0.00010411,2]
[348221192,1736398255131,-1000.0,0.00010411,2]
[348221193,1736398255140,-1000.0,0.00010411,2]
[348221194,1736398255149,-1000.0,0.00010411,2]
[348221195,1736398255159,-1000.0,0.00010411,2]
[348221196,1736398255168,-1000.0,0.00010411,2]
[348221197,1736398255177,-1000.0,0.00010411,2]
[348221198,1736398255186,-1000.0,0.00010411,2]
[348221199,1736398255195,-1000.0,0.00010411,2]
[348221200,1736398255204,-1000.0,0.00010411,2]
[348221201,1736398255213,-1000.0,0.00010411,2]
[348221202,1736398255222,-1000.0,0.00010411,2]
[348221203,1736398255231,-1000.0,0.00010411,2]
[348221204,1736398255240,-1000.0,0.00010411,2]
[348221205,1736398255249,-1000.0,0.00010411,2]
[348221206,1736398255258,-1000.0,0.00010411,2]
[348221207,1736398255267,-1000.0,0.00010411,2]
[348221208,1736398255276,-1000.0,0.00010411,2]
[348221209,1736398255286,-1000.0,0.00010411,2]
[348221210,1736398255296,-1000.0,0.00010411,2]
[348221211,1736398255305,-1000.0,0.00010411,2]
[348221212,1736398255315,-1000.0,0.00010411,2]
[348221213,1736398255324,-1000.0,0.00010411,2]
[348221214,1736398255334,-275.0,0.00010411,2]
[348221215,1736398255344,-1050.45,0.00010439,2]
[348221216,1736398255353,-500.0,0.00010446,2]
[348221217,1736398255363,-500.0,0.00010446,2]
[348221218,1736398255372,-500.0,0.00010446,2]
[348221219,1736398255382,-500.0,0.00010446,2]
[348221220,1736398255392,-587.36503474,0.00010446,2]
[348221221,1736398255401,-500.0,0.00010446,2]
[348221222,1736398255410,-500.0,0.00010446,2]
[348221223,1736398255420,-500.0,0.00010446,2]
[348221224,1736398255429,-500.0,0.00010446,2]
[348221225,1736398255439,-500.0,0.00010446,2]
[348221226,1736398255449,-638.45036015,0.00010446,2]
[348221227,1736398255458,-500.0,0.00010446,2]
[348221228,1736398255469,-500.0,0.00010446,2]
[348221229,1736398255479,-500.0,0.00010446,2]
[348221230,1736398255488,-507.06746048,0.00010446,2]
[348221231,1736398255498,-500.0,0.00010446,2]
[348221232,1736398255511,-500.0,0.00010446,2]
[348221233,1736398255521,-500.0,0.00010446,2]
[348221234,1736398255530,-500.0,0.00010446,2]
[348221235,1736398255540,-559.19,0.00010446,2]
[348221236,1736398255550,-500.0,0.00010446,2]
[348221237,1736398255560,-500.0,0.00010446,2]
[348221238,1736398255570,-500.0,0.00010446,2]
[348221239,1736398255581,-317.95079969,0.00010446,2]
[348221240,1736398255591,-500.0,0.00010446,2]
[348221241,1736398255602,-500.0,0.00010446,2]
[348221242,1736398255612,-507.19710271,0.00010446,2]
[348221243,1736398255622,-586.57,0.00010446,2]
[348221244,1736398255632,-407.1587737,0.00010446,2]
[348221245,1736398255642,-500.0,0.00010446,2]
[348221246,1736398255651,-256.41760065,0.00010446,2]
[348221247,1736398255661,-500.0,0.00010446,2]
[348221248,1736398255672,-500.0,0.00010446,2]
[348221249,1736398255682,-500.0,0.00010446,2]
[348221250,1736398255692,-891.57,0.00010446,2]
[348221251,1736398255702,-513.21807126,0.00010446,2]
[348221252,1736398255712,-513.1922041,0.00010446,2]
[348221253,1736398255721,-2800.55,0.00010446,2]
[348221254,1736398255732,-518.27640895,0.00010446,2]
[348221255,1736398255742,-500.0,0.00010446,2]
[348221256,1736398255751,-500.0,0.00010446,2]
[348221257,1736398255760,-500.0,0.00010446,2]
[348221258,1736398255769,-500.0,0.00010446,2]
[348221259,1736398255778,-500.0,0.00010446,2]
[348221260,1736398255787,-500.0,0.00010446,2]
[348221261,1736398255795,-500.0,0.00010446,2]
[348221262,1736398255805,-500.0,0.00010446,2]
[348221263,1736398255814,-598.19315747,0.00010446,2]
[348221264,1736398255822,-596.27,0.00010446,2]
[348221265,1736398255831,-500.0,0.00010446,2]
[348221266,1736398255840,-500.0,0.00010446,2]
[348221267,1736398255849,-500.0,0.00010446,2]
[348221268,1736398255859,-500.0,0.00010446,2]
[348221269,1736398255868,-500.0,0.00010446,2]
[348221270,1736398255878,-500.0,0.00010446,2]
[348221271,1736398255888,-500.0,0.00010446,2]
[348221272,1736398255898,-500.0,0.00010446,2]
[348221273,1736398255907,-500.0,0.00010446,2]
[348221274,1736398255917,-500.0,0.00010446,2]
[348221275,1736398255927,-543.85078217,0.00010446,2]
[348221276,1736398255937,-500.0,0.00010446,2]
[348221277,1736398255947,-500.0,0.00010446,2]
[348221278,1736398255957,-500.0,0.00010446,2]
[348221279,1736398255967,-500.0,0.00010446,2]
[348221280,1736398255977,-500.0,0.00010446,2]
[348221281,1736398255987,-500.0,0.00010446,2]
[348221282,1736398255997,-500.0,0.00010446,2]
[348221283,1736398256007,-500.0,0.00010446,2]
[348221284,1736398256017,-500.0,0.00010446,2]
[348221285,1736398256027,-2330.18,0.00010446,2]
[348221286,1736398256036,-500.0,0.00010446,2]
[348221287,1736398256046,-500.0,0.00010446,2]
[348221288,1736398256055,-500.0,0.00010446,2]
[348221289,1736398256065,-500.0,0.00010446,2]
[348221290,1736398256074,-500.0,0.00010446,2]
[348221291,1736398256084,-422.79743739,0.00010446,2]
[348221292,1736398256093,-500.0,0.00010446,2]
[348221293,1736398256103,-500.0,0.00010446,2]
[348221294,1736398256113,-500.0,0.00010446,2]
[348221295,1736398256123,-612.96845964,0.00010446,2]
[348221296,1736398256132,-500.0,0.00010446,2]
[348221297,1736398256141,-500.0,0.00010446,2]
[348221298,1736398256150,-500.0,0.00010446,2]